fUSD/lending_fUSD_20260108
["ID","MTS","AMOUNT","RATE_DAILY","PERIOD"]
[400898051,1767857447072,-150.0,0.00017566,2]
[400898054,1767857447081,-300.0,0.00017571,2]
[400898057,1767857447091,-1000.0,0.00017581,2]
[400898060,1767857447100,-1000.0,0.00017583,2]
[400898063,1767857447109,-150.0,0.00017585,2]
[400898065,1767857447117,-300.0,0.00017585,2]
[400898068,1767857447127,-300.0,0.00017588,2]
[400898071,1767857447140,-1676.56,0.0001759,2]
[400898074,1767857447149,-300.0,0.00017591,2]
[400898077,1767857447159,-160.42360576,0.00017592,2]
[400898080,1767857447169,-300.0,0.00017595,2]
[400898083,1767857447179,-300.0,0.00017597,2]
[400898086,1767857447188,-300.0,0.00017599,2]
[400898089,1767857447197,-300.0,0.000176,2]
[400898092,1767857447208,-1000.0,0.00017602,2]
[400898095,1767857447217,-300.0,0.00017604,2]
[400898097,1767857447226,-300.0,0.00017605,2]
[400898099,1767857447236,-300.0,0.0001761,2]
[400898101,1767857447246,-150.0,0.00017612,2]
[400898103,1767857447255,-300.0,0.00017613,2]
[400898105,1767857447264,-672.84932864,0.00017614,2]
[400898107,1767857447274,-300.0,0.00017616,2]
[400898109,1767857447283,-150.0,0.0001762,2]
[400898111,1767857447293,-300.0,0.00017622,2]
[400898113,1767857447302,-1000.0,0.00017623,2]
[400898115,1767857447312,-300.0,0.00017625,2]
[400898117,1767857447322,-150.0,0.00017631,2]
[400898119,1767857447332,-1000.0,0.00017631,2]
[400898121,1767857447342,-885.0,0.00017632,2]
[400898123,1767857447353,-300.0,0.00017637,2]
[400898125,1767857447362,-500.0,0.00017639,2]
[400898127,1767857447371,-300.0,0.00017639,2]
[400898129,1767857447380,-5888.0,0.00017639,2]
[400898131,1767857447389,-15988.33,0.00017662,2]
[400898133,1767857447398,-1000.0,0.00017663,2]
[400898135,1767857447408,-300.0,0.00017665,2]
[400898137,1767857447418,-1000.0,0.00017665,2]
[400898139,1767857447427,-300.0,0.00017667,2]
[400898141,1767857447436,-300.0,0.00017671,2]
[400898143,1767857447447,-300.0,0.00017673,2]
[400898145,1767857447456,-150.0,0.00017677,2]
[400898147,1767857447466,-1000.0,0.00017677,2]
[400898149,1767857447475,-300.0,0.00017679,2]
[400898151,1767857447484,-833.0,0.0001768,2]
[400898153,1767857447493,-162.0,0.0001768,2]
[400898155,1767857447503,-833.0,0.0001768,2]
[400898157,1767857447512,-162.0,0.0001768,2]
[400898159,1767857447521,-300.0,0.00017689,2]
[400898161,1767857447531,-300.0,0.00017695,2]
[400898163,1767857447540,-4555.0777368,0.000177,2]
[400898165,1767857447549,-1000.0,0.000177,2]
[400898167,1767857447558,-885.0,0.00017706,2]
[400898169,1767857447568,-300.0,0.00017707,2]
[400898171,1767857447577,-1000.0,0.00017709,2]
[400898173,1767857447587,-300.0,0.0001771,2]
[400898175,1767857447596,-1000.0,0.0001771,2]
[400898177,1767857447605,-300.0,0.00017715,2]
[400898179,1767857447614,-300.0,0.00017722,2]
[400898180,1767857447623,-150.0,0.00017723,2]
[400898182,1767857447633,-300.0,0.0001773,2]
[400898185,1767857447643,-300.0,0.00017734,2]
[400898187,1767857447652,-300.0,0.00017736,2]
[400898189,1767857447663,-150.0,0.00017736,2]
[400898191,1767857447672,-300.0,0.0001774,2]
[400898193,1767857447681,-1152.0,0.00017742,2]
[400898195,1767857447690,-1152.0,0.00017742,2]
[400898197,1767857447699,-150.0,0.00017749,2]
[400898199,1767857447709,-300.0,0.00017751,2]
[400898201,1767857447718,-300.0,0.00017757,2]
[400898203,1767857447729,-300.0,0.00017757,2]
[400898205,1767857447738,-150.0,0.00017757,2]
[400898207,1767857447748,-300.0,0.00017759,2]
[400898209,1767857447758,-150.0,0.0001776,2]
[400898211,1767857447767,-150.0,0.00017769,2]
[400898212,1767857447775,-300.0,0.00017772,2]
[400898214,1767857447784,-500.0,0.00017776,2]
[400898216,1767857447793,-300.0,0.00017776,2]
[400898219,1767857447802,-885.0,0.00017779,2]
[400898221,1767857447812,-300.0,0.00017785,2]
[400898223,1767857447823,-300.0,0.0001779,2]
[400898225,1767857447832,-300.0,0.00017791,2]
[400898227,1767857447841,-150.0,0.00017792,2]
[400898228,1767857447851,-1000.0,0.00017797,2]
[400898231,1767857447860,-300.0,0.00017798,2]
[400898233,1767857447870,-1000.0,0.00017801,2]
[400898235,1767857447879,-1000.0,0.00017807,2]
[400898237,1767857447888,-300.0,0.00017811,2]
[400898238,1767857447897,-25000.0,0.00017812,3]
[400898240,1767857447906,-300.0,0.00017814,2]
[400898242,1767857447916,-150.0,0.00017815,2]
[400898244,1767857447925,-300.0,0.00017816,2]
[400898246,1767857447934,-25000.0,0.00017821,3]
[400898248,1767857447944,-300.0,0.00017822,2]
[400898250,1767857447953,-300.0,0.00017825,2]
[400898252,1767857447963,-300.0,0.00017826,2]
[400898254,1767857447972,-300.0,0.00017826,2]
[400898257,1767857447981,-300.0,0.00017829,2]
[400898259,1767857447990,-25000.0,0.0001783,3]
[400898260,1767857447999,-1047.53522858,0.0001783,2]
[400898263,1767857448008,-150.48,0.00017831,2]
[400898265,1767857448017,-150.0,0.00017831,2]
[400898267,1767857448026,-150.0,0.00017831,2]
[400898269,1767857448035,-150.0,0.00017831,2]
[400898271,1767857448044,-150.0,0.00017831,2]
[400898273,1767857448054,-150.0,0.00017831,2]
[400898275,1767857448064,-150.0,0.00017831,2]
[400898277,1767857448072,-150.0,0.00017831,2]
[400898279,1767857448082,-150.0,0.00017831,2]
[400898281,1767857448091,-300.0,0.00017835,2]
[400898283,1767857448100,-25000.0,0.00017838,3]
[400898285,1767857448109,-500.0,0.00017846,2]
[400898287,1767857448119,-25000.0,0.00017847,3]
[400898289,1767857448130,-1000.0,0.00017852,2]
[400898291,1767857448143,-200.589792,0.00017853,2]
[400898293,1767857448152,-885.0,0.00017853,2]
[400898295,1767857448161,-300.0,0.00017854,2]
[400898297,1767857448170,-300.0,0.00017855,2]
[400898299,1767857448181,-200.0,0.00017855,2]
[400898301,1767857448189,-200.0,0.00017856,2]
[400898303,1767857448198,-300.0,0.00017856,2]
[400898304,1767857448208,-200.0,0.00017856,2]
[400898307,1767857448217,-200.0,0.00017856,2]
[400898309,1767857448227,-200.0,0.00017856,2]
[400898311,1767857448236,-25000.0,0.00017856,3]
[400898312,1767857448245,-150.0,0.00017862,2]
[400898315,1767857448255,-1676.56,0.00017864,2]
[400898316,1767857448264,-25000.0,0.00017865,3]
[400898319,1767857448273,-769.53055104,0.00017869,2]
[400898321,1767857448282,-300.0,0.0001787,2]
[400898323,1767857448291,-177.4888516,0.00017873,3]
[400898324,1767857448300,-25000.0,0.00017874,3]
[400898326,1767857448310,-300.0,0.00017876,2]
[400898328,1767857448319,-300.0,0.00017877,2]
[400898330,1767857448328,-25000.0,0.00017882,3]
[400898332,1767857448337,-1000.0,0.00017883,2]
[400898334,1767857448346,-1000.0,0.00017886,2]
[400898336,1767857448356,-300.0,0.00017887,2]
[400898339,1767857448366,-300.0,0.00017889,2]
[400898341,1767857448376,-300.0,0.0001789,2]
[400898343,1767857448385,-25000.0,0.00017891,3]
[400898345,1767857448395,-300.0,0.00017892,2]
[400898347,1767857448404,-300.0,0.00017893,2]
[400898349,1767857448414,-876.29583334,0.000179,2]
[400898351,1767857448423,-737.13729626,0.000179,2]
[400898353,1767857448432,-25000.0,0.000179,3]
[400898355,1767857448442,-15364.73579307,0.000179,2]
[400898357,1767857448452,-278.49885641,0.000179,2]
[400898359,1767857448462,-160.59693296,0.000179,2]
[400898361,1767857448471,-17120.08999858,0.000179,2]
[400898363,1767857448481,-12787.0,0.000179,2]
[400898365,1767857448490,-300.0,0.00017901,2]
[400898367,1767857448500,-4609.0,0.00017903,2]
[400898369,1767857448510,-300.0,0.00017905,2]
[400898371,1767857448520,-150.0,0.00017908,2]
[400898373,1767857448529,-1000.0,0.00017908,2]
[400898375,1767857448539,-300.0,0.00017915,2]
[400898377,1767857448549,-300.0,0.0001792,2]
[400898379,1767857448558,-300.0,0.00017922,2]
[400898381,1767857448567,-885.0,0.00017926,2]
[400898383,1767857448576,-1000.0,0.00017926,2]
[400898385,1767857448586,-300.0,0.00017929,2]
[400898387,1767857448595,-157.72323008,0.0001793,2]
[400898389,1767857448605,-1000.0,0.00017932,2]
[400898391,1767857448614,-150.0,0.00017954,2]
[400898393,1767857448623,-346.92554585,0.00017955,2]
[400898395,1767857448632,-666.72878,0.00017955,2]
[400898397,1767857448642,-599.60298507,0.00017956,2]
[400898399,1767857448651,-300.0,0.00017956,2]
[400898401,1767857448661,-688.49839244,0.00017957,2]
[400898403,1767857448670,-300.0,0.00017959,2]
[400898405,1767857448680,-300.0,0.00017963,2]
[400898407,1767857448689,-300.0,0.00017964,2]
[400898409,1767857448699,-300.0,0.00017965,2]
[400898411,1767857448712,-300.0,0.00017966,2]
[400898413,1767857448721,-150.0,0.00017966,2]
[400898415,1767857448731,-500.0,0.0001797,2]
[400898417,1767857448740,-1000.0,0.0001797,2]
[400898419,1767857448750,-1000.0,0.0001797,2]
[400898421,1767857448759,-1000.0,0.0001797,2]
[400898423,1767857448769,-1000.0,0.0001797,2]
[400898425,1767857448778,-1000.0,0.0001797,2]
[400898427,1767857448788,-500.0,0.0001797,2]
[400898429,1767857448800,-500.0,0.0001797,2]
[400898432,1767857448809,-500.0,0.0001797,2]
[400898434,1767857448819,-500.0,0.0001797,2]
[400898435,1767857448828,-500.0,0.0001797,2]
[400898437,1767857448838,-684.41347442,0.0001797,2]
[400898438,1767857448847,-1000.0,0.0001797,2]
[400898439,1767857448856,-1000.0,0.0001797,2]
[400898440,1767857448866,-1000.0,0.0001797,2]
[400898441,1767857448875,-1000.0,0.0001797,2]
[400898442,1767857448884,-1000.0,0.0001797,2]
[400898443,1767857448894,-1046.54474908,0.0001797,2]
[400898444,1767857448903,-500.0,0.00017972,2]
[400898445,1767857448912,-156.0,0.00017973,2]
[400898446,1767857448922,-500.0,0.00017973,2]
[400898447,1767857448931,-500.0,0.00017973,2]
[400898448,1767857448940,-500.75581913,0.00017973,2]
[400898449,1767857448951,-500.0,0.00017973,2]
[400898451,1767857448961,-426.73386812,0.00017973,2]
[400898453,1767857448971,-500.0,0.00017973,2]
[400898455,1767857448981,-500.0,0.00017973,2]
[400898458,1767857448991,-500.17178809,0.00017973,2]
[400898460,1767857449000,-500.0,0.00017973,2]
[400898462,1767857449009,-500.0,0.00017973,2]
[400898463,1767857449019,-500.0,0.00017973,2]
[400898465,1767857449028,-500.0,0.00017973,2]
[400898467,1767857449038,-501.18870733,0.00017973,2]
[400898469,1767857449049,-338.62982115,0.00017973,2]
[400898471,1767857449058,-500.0,0.00017973,2]
[400898473,1767857449067,-500.0,0.00017973,2]
[400898475,1767857449077,-500.0,0.00017973,2]
[400898477,1767857449087,-300.0,0.00017973,2]
[400898479,1767857449095,-500.0,0.00017973,2]
[400898481,1767857449104,-150.0,0.00017973,2]
[400898483,1767857449114,-150.0,0.00017975,2]
[400898485,1767857449123,-300.0,0.0001798,2]
[400898488,1767857449136,-500.0,0.00017982,2]
[400898489,1767857449146,-300.0,0.00017984,2]
[400898491,1767857449155,-300.0,0.00017988,2]
[400898494,1767857449165,-1411.4358853,0.00017988,2]
[400898496,1767857449175,-1411.4358853,0.0001799,2]
[400898498,1767857449184,-500.0,0.00017992,2]
[400898499,1767857449194,-500.0,0.00017992,2]
[400898501,1767857449203,-150.0,0.00017996,2]
[400898503,1767857449212,-363.73176274,0.00017997,2]
[400898505,1767857449221,-200.589792,0.00017997,2]
[400898508,1767857449231,-252303.0216899,0.00017998,2]
[400898509,1767857449240,-171.18779201,0.00017999,2]
[400898512,1767857449250,-11518.53087648,0.00017999,2]
[400898513,1767857449259,-666.0,0.00017999,2]
[400898515,1767857449268,-1006.1979,0.00017999,2]
[400898517,1767857449278,-300.0,0.00017999,2]
[400898519,1767857449289,-500.0,0.00017999,2]
[400898522,1767857449299,-500.0,0.00017999,2]
[400898524,1767857449308,-500.0,0.00017999,2]
[400898526,1767857449318,-500.0,0.00017999,2]
[400898528,1767857449328,-338.00886573,0.00017999,2]
[400898530,1767857449338,-300.0,0.00017999,2]
[400898532,1767857449347,-300.0,0.00017999,2]
[400898534,1767857449356,-666.0,0.00017999,2]
[400898536,1767857449366,-300.0,0.00017999,2]
[400898537,1767857449376,-300.0,0.00017999,2]
[400898539,1767857449386,-666.0,0.00017999,2]
[400898542,1767857449395,-300.0,0.00017999,2]
[400898544,1767857449405,-300.0,0.00017999,2]
[400898545,1767857449415,-666.0,0.00017999,2]
[400898548,1767857449426,-300.0,0.00017999,2]
[400898550,1767857449436,-300.0,0.00017999,2]
[400898552,1767857449447,-666.0,0.00017999,2]
[400898554,1767857449458,-5970.77362135,0.00017999,2]
[400898556,1767857449468,-666.0,0.00017999,2]
[400898558,1767857449479,-300.0,0.00017999,2]
[400898560,1767857449489,-154.67877044,0.00018,2]
[400898562,1767857449499,-2927735.03882019,0.00018,2]
[400898564,1767857449509,-1774966.765623,0.00018,2]
[400898637,1767857450248,-35687.8825367,0.00018,2]
[400898639,1767857450260,-1023.47056,0.00018,2]
[400898642,1767857450278,-642.12284043,0.00018,2]
[400898686,1767857450821,-166.66,0.00012329,2]
[400898688,1767857450830,-166.66,0.00012452,2]
[400898690,1767857450839,-166.66,0.00012575,2]
[400898691,1767857450848,-166.66,0.00012699,2]
[400898693,1767857450857,-867.89404587,0.00018,2]
[400898695,1767857450869,-1372.94995013,0.00018,2]
[400898698,1767857450883,-362.9929744,0.00018,2]
[400898754,1767857451523,-1.7e-07,0.00018,2]
[400898759,1767857451563,-166.66,0.00012822,2]
[400898761,1767857451572,-142172.55004572,0.00018,2]
[400898762,1767857451583,-2604.52452934,0.00018,2]
[400898817,1767857452286,-166.66,0.00012945,2]
[400898818,1767857452295,-151.0,0.00015228,2]
[400898820,1767857452307,-233.13011962,0.0001544,2]
[400898822,1767857452316,-565.0,0.00017423,2]
[400898824,1767857452325,-6718.71277972,0.00017803,3]
[400898827,1767857452340,-928.58511849,0.00017803,3]
[400898830,1767857452356,-598.44994,0.00017803,3]
[400898832,1767857452367,-538.9811538,0.00017803,3]
[400898834,1767857452380,-1266.87509034,0.00017803,3]
[400898838,1767857452407,-151.0,0.00015876,2]
[400898840,1767857452417,-300.0,0.00017557,2]
[400898842,1767857452426,-14948.39591765,0.00017803,3]
[400898844,1767857452436,-77495.60033211,0.00018,2]
[400898847,1767857452447,-639.64572721,0.00018,2]
[400899798,1767857478013,10000.01,0.00012229,2]
[400899799,1767857478086,10000.01,0.00012229,2]
[400899800,1767857478156,10000.01,0.00012229,2]
[400899801,1767857478246,3580.3523,0.00012229,2]
[400899802,1767857493102,10000.01,0.00012229,2]
[400899803,1767857493173,10000.01,0.00012229,2]
[400899804,1767857493243,10000.01,0.00012229,2]
[400899805,1767857493319,10000.01,0.00012229,2]
[400899806,1767857493406,10000.01,0.00012229,2]
[400899807,1767857493481,10000.01,0.00012229,2]
[400899808,1767857493566,10000.01,0.00012229,2]
[400899809,1767857493647,10000.01,0.00012229,2]
[400899810,1767857493721,10000.01,0.00012229,2]
[400899811,1767857493790,10000.01,0.00012229,2]
[400899812,1767857495281,-295.94492494,0.00012229,2]
[400899813,1767857521691,300.0,0.00012228,2]
[400899814,1767857528422,4263.30904796,0.00012228,2]
[400899815,1767857563941,375.14977243,0.00012228,2]
[400899816,1767857564022,500.0,0.00012228,2]
[400899817,1767857564239,371.71980147,0.00012228,2]
[400899818,1767857564325,281.03425445,0.00012228,2]
[400899819,1767857564879,500.0,0.00012228,2]
[400899820,1767857564966,437.11298319,0.00012228,2]
[400899821,1767857567094,500.0,0.00012228,2]
[400899822,1767857567175,191.76481661,0.00012228,2]
[400899823,1767857567302,500.0,0.00012228,2]
[400899824,1767857567411,445.89134248,0.00012228,2]
[400899825,1767857567525,500.0,0.00012228,2]
[400899826,1767857567657,500.0,0.00012228,2]
[400899827,1767857567749,334.02798141,0.00012228,2]
[400899828,1767857567815,165.97201859,0.00012228,2]
[400899829,1767857568390,500.0,0.00012228,2]
[400899830,1767857568509,500.0,0.00012228,2]
[400899831,1767857568636,500.0,0.00012228,2]
[400899832,1767857568766,500.0,0.00012228,2]
[400899833,1767857568877,500.0,0.00012228,2]
[400899834,1767857569042,500.0,0.00012228,2]
[400899835,1767857569146,500.0,0.00012228,2]
[400899836,1767857569263,500.0,0.00012228,2]
[400899837,1767857569375,500.0,0.00012228,2]
[400899838,1767857569490,613.87758511,0.00012228,2]
[400899839,1767857569603,500.0,0.00012228,2]
[400899840,1767857569713,500.0,0.00012228,2]
[400899841,1767857569822,500.0,0.00012228,2]
[400899842,1767857569935,500.0,0.00012228,2]
[400899843,1767857570028,500.0,0.00012228,2]
[400899844,1767857570132,500.0,0.00012228,2]
[400899845,1767857570263,-410.11496642,0.00012229,2]
[400899846,1767857570381,68212.31943707,0.00032,120]
[400899847,1767857571301,-400.02526674,0.00012229,2]
[400899848,1767857578121,174.84758973,0.00012129,2]
[400899849,1767857579060,162.11017628,0.00012129,2]
[400899850,1767857581455,300.0,0.00012228,2]
[400899851,1767857582143,150.0,0.00012228,2]
[400899852,1767857587633,-381.18452425,0.00012229,2]
[400899853,1767857595056,165.82255994,0.00012129,2]
[400899854,1767857602393,-250.0,0.00012229,2]
[400899855,1767857606381,767.38007035,0.00012167,2]
[400899856,1767857606451,423.94468665,0.00012167,2]
[400899857,1767857606489,-252.1412399,0.00012229,2]
[400899858,1767857608248,-343.24253653,0.00012229,2]
[400899859,1767857610650,-160.16809642,0.00012229,2]
[400899860,1767857624265,1005.551873,0.00012167,2]
[400899861,1767857628634,8570.51344035,0.00012129,2]
[400899862,1767857629289,4417.36235965,0.00012129,2]
[400899863,1767857631769,457.22,0.00016,14]
[400899864,1767857641388,548.67,0.000145,3]
[400899865,1767857642186,274.97,0.000142,5]
[400899866,1767857701381,1200.0,0.00012228,2]
[400899867,1767857701464,300.0,0.00012228,2]
[400899868,1767857701561,300.0,0.00012228,2]
[400899869,1767857740605,165.82255993,0.00012129,2]
[400899870,1767857752526,-223.4736911,0.00012229,2]
[400899871,1767857763510,150.0,0.00012228,2]
[400899872,1767857766242,260.20386103,0.00012228,2]
[400899873,1767857767442,-163.43658367,0.00012229,2]
[400899874,1767857771550,-157.9150788,0.00012229,2]
[400899875,1767857774522,-236.62451768,0.00012229,2]
[400899876,1767857776034,-237.49070041,0.00012229,2]
[400899877,1767857778798,3206.62121939,0.00012129,2]
[400899878,1767857778864,10000.01,0.00012129,2]
[400899879,1767857778931,10000.01,0.00012129,2]
[400899880,1767857778998,10000.01,0.00012129,2]
[400899881,1767857779065,373.73108061,0.00012129,2]
[400899882,1767857779177,-546.10582028,0.00012229,2]
[400899883,1767857779656,152.99164106,0.00012129,2]
[400899884,1767857781639,500.0,0.00012228,2]
[400899885,1767857781729,500.0,0.00012228,2]
[400899886,1767857781820,357.01188961,0.00012228,2]
[400899887,1767857781913,500.0,0.00012228,2]
[400899888,1767857782012,500.0,0.00012228,2]
[400899889,1767857782098,500.0,0.00012228,2]
[400899890,1767857782188,500.0,0.00012228,2]
[400899891,1767857782283,500.0,0.00012228,2]
[400899892,1767857782374,500.0,0.00012228,2]
[400899893,1767857782459,500.0,0.00012228,2]
[400899894,1767857782550,500.0,0.00012228,2]
[400899895,1767857782965,500.0,0.00012228,2]
[400899896,1767857783052,500.0,0.00012228,2]
[400899897,1767857783145,500.0,0.00012228,2]
[400899898,1767857783244,500.0,0.00012228,2]
[400899899,1767857783341,500.0,0.00012228,2]
[400899900,1767857783437,500.0,0.00012228,2]
[400899901,1767857783539,500.0,0.00012228,2]
[400899902,1767857783575,-534.14261499,0.00012229,2]
[400899903,1767857785264,-404.0648565,0.00012229,2]
[400899904,1767857787273,500.0,0.00012228,2]
[400899905,1767857787403,-300.0,0.00012229,2]
[400899906,1767857788648,116.27538872,0.00012129,2]
[400899907,1767857788714,36.71625234,0.00012129,2]
[400899908,1767857792365,500.0,0.00012228,2]
[400899909,1767857792754,-500.0,0.00012229,2]
[400899910,1767857794264,-264.0,0.00012229,2]
[400899911,1767857795801,-259.74567267,0.00012229,2]
[400899912,1767857800005,-426.91222496,0.00012229,2]
[400899913,1767857803178,-621.67660694,0.00012229,2]
[400899914,1767857806479,-170.91286775,0.00012229,2]
[400899915,1767857808616,-242.0811956,0.00012229,2]
[400899916,1767857810724,-500.0,0.00012229,2]
[400899917,1767857814637,-203.43128444,0.00012229,2]
[400899918,1767857815149,262.6048407,0.00012228,2]
[400899919,1767857816104,-344.84854812,0.00012229,2]
[400899920,1767857818840,-351.97246794,0.00012229,2]
[400899921,1767857820723,361.20476566,0.00012129,2]
[400899922,1767857821115,-370.32276077,0.00012229,2]
[400899923,1767857825881,-300.0,0.00012229,2]
[400899924,1767857827077,-212.515,0.00012229,2]
[400899925,1767857830059,-223.98433827,0.00012229,2]
[400899926,1767857831225,151.0,0.00012229,2]
[400899927,1767857831325,151.0,0.00012229,2]
[400899928,1767857831620,-358.93138377,0.00012229,2]
[400899929,1767857831862,151.0,0.00012229,2]
[400899930,1767857831940,151.0,0.00012229,2]
[400899931,1767857832555,151.0,0.00012229,2]
[400899932,1767857832976,151.0,0.00012229,2]
[400899933,1767857833218,151.0,0.00012229,2]
[400899934,1767857833640,151.0,0.00012229,2]
[400899935,1767857833775,2500.0,0.00012129,2]
[400899936,1767857833824,-355.71847812,0.00012229,2]
[400899937,1767857833925,151.0,0.00012229,2]
[400899938,1767857834397,151.0,0.00012229,2]
[400899939,1767857834501,151.0,0.00012229,2]
[400899940,1767857835054,151.0,0.00012229,2]
[400899941,1767857835147,151.0,0.00012229,2]
[400899942,1767857835717,151.0,0.00012229,2]
[400899943,1767857837517,151.0,0.00012229,2]
[400899944,1767857837683,151.0,0.00012229,2]
[400899945,1767857837767,151.0,0.00012229,2]
[400899946,1767857837846,500.0,0.00012229,2]
[400899947,1767857838017,151.0,0.00012229,2]
[400899948,1767857838100,151.0,0.00012229,2]
[400899949,1767857838323,263.04550488,0.00012229,2]
[400899950,1767857838408,151.0,0.00012229,2]
[400899951,1767857838576,151.0,0.00012229,2]
[400899952,1767857841876,2405.43863642,0.00012129,2]
[400899953,1767857841953,10000.01,0.00012129,2]
[400899954,1767857842034,3445.85382538,0.00012129,2]
[400899955,1767857845394,200.0,0.00012229,2]
[400899956,1767857846906,156.8049795,0.00012229,2]
[400899957,1767857870541,-8607.65497739,0.00012229,2]
[400899958,1767857876269,165.82255993,0.00012129,2]
[400899960,1767857885113,6000.0,0.00032877,120]
[400899961,1767857886557,9834.18744007,0.00012129,2]
[400899962,1767857886624,4716.20154061,0.00012129,2]
[400899963,1767857895150,1200.0,0.00012228,2]
[400899964,1767857895599,4107.0,0.000328,120]
[400899965,1767857913724,4083.80845939,0.00012129,2]
[400899966,1767857913850,10000.01,0.00012129,2]
[400899967,1767857913978,6508.68804061,0.00012129,2]
[400899968,1767857941578,300.0,0.00012228,2]
[400899969,1767857941932,300.0,0.00012228,2]
[400899970,1767857942104,150.0,0.00012228,2]
[400899971,1767857944140,152.99164102,0.00012129,2]
[400899972,1767857947171,152.99164102,0.00012129,2]
[400899973,1767857983321,2435.33867735,0.00012129,2]
[400899974,1767857983382,64.66132265,0.00012129,2]
[400899975,1767858002081,300.0,0.00012228,2]
[400899976,1767858002160,1200.0,0.00012228,2]
[400899977,1767858004343,250.0,0.00012229,2]
[400899978,1767858007542,-165.54985788,0.00012229,2]
[400899979,1767858010259,-252.177763,0.00012229,2]
[400899982,1767858012770,-290.29070041,0.00012229,2]
[400899987,1767858014858,-167.62014212,0.00012229,2]
[400899990,1767858017013,-341.157111,0.00012229,2]
[400899998,1767858085882,152.99164098,0.00012129,2]
[400899999,1767858093090,3775.86,0.00011984,2]
[400900000,1767858093180,183.976,0.00011984,2]
[400900001,1767858093434,152.99164098,0.00012129,2]
[400900002,1767858099078,958.7938,0.00012129,2]
[400900003,1767858122143,150.0,0.00012228,2]
[400900004,1767858126188,2810.73559539,0.00012129,2]
[400900005,1767858126250,10000.01,0.00012129,2]
[400900006,1767858126313,7340.32910461,0.00012129,2]
[400900007,1767858126433,182.14270272,0.00012228,2]
[400900008,1767858127728,500.0,0.00012229,2]
[400900009,1767858132412,1977.53819267,0.00012129,2]
[400900010,1767858132475,522.46180733,0.00012129,2]
[400900011,1767858138519,1100.0,0.00012054,2]
[400900012,1767858141507,500.0,0.00012228,2]
[400900013,1767858141607,595.22354329,0.00012228,2]
[400900014,1767858142700,200.0,0.00012229,2]
[400900015,1767858143740,1100.0,0.00011451,2]
[400900016,1767858146251,151.0,0.00012229,2]
[400900017,1767858146869,151.0,0.00012229,2]
[400900018,1767858147557,151.0,0.00012229,2]
[400900019,1767858148204,1100.0,0.00010879,2]
[400900020,1767858148710,151.0,0.00012229,2]
[400900021,1767858149370,151.0,0.00012229,2]
[400900022,1767858149634,183.82338849,0.00012228,2]
[400900023,1767858150297,151.0,0.00012229,2]
[400900024,1767858150637,151.0,0.00012229,2]
[400900025,1767858151254,151.0,0.00012229,2]
[400900026,1767858151875,151.0,0.00012229,2]
[400900027,1767858152697,151.0,0.00012229,2]
[400900028,1767858152971,1100.0,0.00010335,2]
[400900029,1767858153307,151.0,0.00012229,2]